Cogmind - Beta 14 *** ADVENTURER MODE // 2024.11.20 @ 11:55:06 Player: skye Result: Destroyed by G-34 Mercenary with Small Laser Performance ------------- Evolutions (1) 500 Regions Visited (3) 600 Robots Destroyed (32) 160 Value Destroyed (764) 764 Prototype IDs (0) 0 Alien Tech Used (0) 0 Bonus (0) 0 TOTAL SCORE: 2024 Bonus ------- None Cogmind --------- Core Integrity 0/400 Matter 300/300 Energy 82/100 System Corruption 3% Temperature Cool (6) Movement Core (600) Ox11 Location -9/Materials Parts ------- > --- POWER (2) -------- (None) > --- PROPULSION (2) --- (None) > --- UTILITY (3) ------ Medium Storage Unit Large Storage Unit Improved Terrain Scanner > --- WEAPON (2) ------- Makeshift Hammer > --- INVENTORY (15) --- Improved Heat Sink Visual Processing Unit Sensor Array Sensor Array ECM Suite System Shield Assault Rifle Light Assault Rifle Heavy Assault Rifle Heavy Assault Rifle Mining Laser Peak State ------------ > --- POWER ------------ Ion Engine Nuclear Core > --- PROPULSION ------- Wheel Wheel > --- UTILITY ---------- Large Storage Unit Structural Scanner Improved Terrain Scanner > --- WEAPON ----------- Assault Rifle Makeshift Hammer > --- INVENTORY -------- Ion Engine Improved Heat Sink Medium Storage Unit Visual Processing Unit Sensor Array Sensor Array ECM Suite System Shield Assault Rifle Light Assault Rifle Heavy Assault Rifle Heavy Assault Rifle Mining Laser [Rating: 18] Favorites ----------- Power Ion Engine Engine Ion Engine Power Core Nuclear Core Propulsion Light Treads Treads Light Treads Leg Aluminum Leg Wheel Wheel Utility Terrain Scanner Device Terrain Scanner Storage Medium Storage Unit Protection Light Armor Plating Weapon Assault Rifle Energy Gun Small Laser Ballistic Gun Assault Rifle Launcher Grenade Launcher Impact Weapon Makeshift Hammer Build | -11 -10 -10 -9 ------- Run | Yrd Mat Min Mat Slots Evolved 2 | . . . 2 Power 1 | . . . 1 Propulsion . | . . . . Utility 1 | . . . 1 Weapon . | . . . . Parts Attached 24 | 2 8 3 11 Power 2 | . . . 2 Engine 1 | . . . 1 Core 1 | . . . 1 Reactor . | . . . . Propulsion 4 | 2 . . 2 Treads 2 | 2 . . . Leg . | . . . . Wheel 2 | . . . 2 Hover . | . . . . Flight . | . . . . Utility 10 | . 4 2 4 Device 5 | . 2 1 2 Storage 3 | . 2 . 1 Processor . | . . . . Hackware . | . . . . Protection 2 | . . 1 1 Artifact . | . . . . Weapon 8 | . 4 1 3 Energy Gun 1 | . 1 . . Energy Cannon . | . . . . Ballistic Gun 2 | . 1 . 1 Ballistic Cannon . | . . . . Launcher 3 | . 2 . 1 Special Weapon . | . . . . Impact Weapon 2 | . . 1 1 Slashing Weapon . | . . . . Piercing Weapon . | . . . . Special Melee Weapon . | . . . . Unidentified Prototypes . | . . . . Parts Lost 9 | . . . 9 Power 2 | . . . 2 Propulsion 3 | . . . 3 Utility 2 | . . . 2 Weapon 2 | . . . 2 Highest Loss Streak 5 | . . . 5 To Critical Strikes . | . . . . Average Slot Usage (%) 96 | . 97 100 84 Engine 13 | . 14 14 10 Treads 25 | . 28 28 7 Device 12 | . 11 13 13 Storage 13 | . 14 14 11 Energy Gun 2 | . 3 . . Ballistic Gun 13 | . 14 14 12 Launcher 9 | . 10 7 1 Impact Weapon 2 | . . 6 7 Peak Build Rating 18 | 6 9 12 18 Average Rating 8 | 6 7 10 14 On Entrance 8 | 6 6 9 12 Naked Turns . | . . . . Heaviest Build 42 | 13 32 34 42 Greatest Support 40 | 40 40 40 40 Greatest Overweight (x) 11 | . . . 11 Average Overweight (x) . | . . . 1 Largest Inventory Capacity 15 | 8 15 15 15 Average Capacity 11 | 8 10 15 15 Most Carried 15 | 6 14 15 15 Average Carried 10 | 6 9 14 13 Final Capacity 15 | 8 15 15 15 Final Carried 15 | 6 14 15 11 Class Distribution -------------------- 100% | Mutant Dominant Class ---------------- Mutant | -10/Materials Mutant | -10/Mines Mutant | -9/Materials Resources | -11 -10 -10 -9 ----------- Run | Yrd Mat Min Mat Matter Collected 752 | 162 285 110 195 Remotely . | . . . . Salvage Created 832 | . 308 200 324 Parts 60 | . 16 19 25 Haulers Intercepted . | . . . . Recyclers Shooed 1 | . . . 1 Parts Field Recycled . | . . . . Retrieved Matter . | . . . . Parts Self-Destructed . | . . . . Prevented . | . . . . Kills | -11 -10 -10 -9 ------- Run | Yrd Mat Min Mat Combat Hostiles Destroyed 21 | . 6 7 8 Melee 3 | . . . 3 Guns 14 | . 4 5 5 AOE 4 | . 2 2 . Classes Destroyed 10 | . 3 3 4 Worker 1 | . . . 1 Builder 3 | . . 1 2 Tunneler 1 | . . 1 . Recycler 1 | . 1 . . Operator 1 | . . . 1 Watcher 4 | . 2 . 2 Swarmer 7 | . . 3 4 Grunt 12 | . 6 4 2 Duelist 1 | . . . 1 Sentry 1 | . . . 1 Best Kill Streak 10 | . 3 3 10 Combat Bots Only 6 | . 2 3 6 Max Kills in Single Turn 2 | . 1 2 1 Gunslinging . | . . . . Exploded 1 | . 1 1 . Melee 1 | . . . 1 Uniques/NPCs Destroyed . | . . . . Combat | -11 -10 -10 -9 -------- Run | Yrd Mat Min Mat Hostile Shots Fired 249 | . 43 21 185 Missed 72 | . 14 4 54 Damage Taken 1668 | . 334 126 1208 Core 460 | . 35 22 403 Absorbed by Shields . | . . . . Ignored by Resistances 500 | . 102 41 357 Regen/Repaired (Parts) 11 | . 11 . . Core Remaining (%) 88 | 100 . 77 . Volleys Fired 104 | . 45 19 40 Largest 1 | . 1 1 1 Hottest 30 | . 30 30 30 Shots Fired 104 | . 45 19 40 Gun 96 | . 40 17 39 Cannon . | . . . . Launcher 8 | . 5 2 1 Special . | . . . . Kinetic 96 | . 40 17 39 Thermal . | . . . . Explosive 8 | . 5 2 1 Electromagnetic . | . . . . Robot Hit Streak 11 | . 9 11 9 Robot Miss Streak 3 | . 3 1 3 Penetration Max . | . . . . Secondary Targets . | . . . . Shots Hit Robots 102 | . 35 18 49 Core Hits 43 | . 18 11 14 Critical Kills . | . . . . Critical Parts Destroyed 2 | . . 1 1 Critical Strikes 2 | . . 1 1 Smash 2 | . . 1 1 Melee Attacks 29 | . . 6 23 Impact 29 | . . 6 23 Slashing . | . . . . Piercing . | . . . . Sneak Attacks 4 | . . 1 3 Combat Hostiles . | . . . . Follow-up Attacks . | . . . . Damage Inflicted 2672 | . 762 470 1440 Guns 959 | . 381 201 377 Cannons . | . . . . Explosions 564 | . 375 150 39 Melee 1129 | . . 119 1010 Ramming 20 | . 6 . 14 Kinetic 959 | . 381 201 377 Thermal . | . . . . Explosive 564 | . 375 150 39 Electromagnetic . | . . . . Impact 1129 | . . 119 1010 Slashing . | . . . . Piercing . | . . . . Highest Corruption 3 | . . . 3 Average Corruption 3 | . . . 3 Corruption Purged . | . . . . Corruption Blocked . | . . . . Effects 3 | . . . 3 Message Errors 1 | . . . 1 Heat Flow Errors 2 | . . . 2 Overload Shots . | . . . . Overflow Damage 352 | . . 119 233 Projectiles . | . . . . Explosions . | . . . . Melee 352 | . . 119 233 Knockbacks 3 | . . . 3 Impact 3 | . . . 3 Kinetic . | . . . . Secondary . | . . . . Self-Inflicted Damage 35 | . 30 . 5 Shots 3 | . 3 . . Rammed 5 | . 2 . 3 Targets Rammed 5 | . 2 . 3 Kicked . | . . . . Crushed . | . . . . Highest Temperature 207 | . 10 1 207 Average Temperature 49 | . 5 1 55 Received Heat Transfer 777 | . 222 48 507 Siege Activations . | . . . . Robots Corrupted 2 | . . . 2 Combat Hostiles . | . . . . Parts Fried 9 | . . 1 8 Impact Corruptions 14 | . . 3 11 Robots Melted . | . . . . Combat Hostiles . | . . . . Parts Melted . | . . . . Heat Transferred . | . . . . Parts Sabotaged . | . . . . Parts Stolen . | . . . . Parts Stripped . | . . . . Power Chain Reactions . | . . . . Alert | -11 -10 -10 -9 ------- Run | Yrd Mat Min Mat Peak Influence 214 | . 143 208 214 Initial 4 | . . . 4 Average 56 | . 33 106 102 Maximum Alert Level 1 | . . 1 1 Low Security (%) 94 | 100 100 78 97 Level 1 5 | . . 21 2 Level 2 . | . . . . Level 3 . | . . . . Level 4 . | . . . . Level 5 . | . . . . High Security . | . . . . Max Security . | . . . . Squads Dispatched 2 | . . . 2 Investigation . | . . . . Extermination . | . . . . Reinforcement 2 | . . . 2 Assault . | . . . . Garrison . | . . . . Intercept . | . . . . Searches Triggered . | . . . . Construction Impeded 1 | . . . 1 Haulers Reinforced . | . . . . Active Scanning Responses . | . . . . Cargo Convoy Interrupts . | . . . . Stealth | -11 -10 -10 -9 --------- Run | Yrd Mat Min Mat Distress Signals 4 | . 1 . 3 Communications Jammed . | . . . . Distress Signals . | . . . . Times Spotted 35 | . 8 5 22 Peak Tracking Total 8 | . 2 2 8 Tactical Retreats . | . . . . Traps | -11 -10 -10 -9 ------- Run | Yrd Mat Min Mat Traps Triggered . | . . . . Indirectly . | . . . . Trap Hack Attempts . | . . . . Triggered . | . . . . Disarmed . | . . . . Reprogrammed . | . . . . Reused . | . . . . Traps Extracted . | . . . . Installed . | . . . . Triggered . | . . . . Machines | -11 -10 -10 -9 ---------- Run | Yrd Mat Min Mat Machines Disabled 2 | . 1 1 . Max in Single Turn 1 | . 1 1 . Machines Repaired . | . . . . Machines Dismantled . | . . . . Machines Sabotaged . | . . . . Overloaded Fab Kills . | . . . . Hacking | -11 -10 -10 -9 --------- Run | Yrd Mat Min Mat Machines Accessed 10 | . 9 . 1 Terminals 7 | . 6 . 1 Fabricators . | . . . . Repair Stations 1 | . 1 . . Recycling Units 2 | . 2 . . Scanalyzers . | . . . . Garrison Access . | . . . . Total Hacks 22 | . 20 . 2 Successful 15 | . 15 . . Failed 7 | . 5 . 2 Catastrophic 1 | . 1 . . Database Lockouts . | . . . . Manual 15 | . 13 . 2 Terminals 15 | . 13 . 2 Fabricators . | . . . . Repair Stations 2 | . 2 . . Recycling Units 5 | . 5 . . Scanalyzers . | . . . . Garrison Access . | . . . . Terminal Hacks 5 | . 5 . . Part Schematic 1 | . 1 . . Alert Level 1 | . 1 . . Locate Traps 2 | . 2 . . Hauler Manifests 1 | . 1 . . Fabricator Hacks . | . . . . Repair Station Hacks 2 | . 2 . . Scan Component 1 | . 1 . . Repair 1 | . 1 . . Recycling Unit Hacks 3 | . 3 . . Report Inventory 2 | . 2 . . Retrieve Components 1 | . 1 . . Scanalyzer . | . . . . Garrison Access Hacks . | . . . . Unauthorized Hacks 5 | . 5 . . Terminals 5 | . 5 . . Botnet 5 | . 5 . . Fabricators . | . . . . Repair Stations . | . . . . Recycling Units . | . . . . Scanalyzers . | . . . . Garrison Access . | . . . . Data Cores Recovered . | . . . . Used . | . . . . Hacking Detections 7 | . 6 . 1 Full Trace Events . | . . . . Feedback Events . | . . . . Feedback Blocked . | . . . . Robot Schematics Acquired . | . . . . Robots Built . | . . . . Authchips . | . . . . Time . | . . . . Total Robot Build Rating . | . . . . Part Schematics Acquired 1 | . 1 . . Parts Built . | . . . . Authchips . | . . . . Time . | . . . . Total Part Build Rating . | . . . . Parts Repaired 1 | . 1 . . Time 26 | . 26 . . Parts Recycled . | . . . . Recycled Matter . | . . . . Retrieved Matter . | . . . . Retrieved Components 10 | . 10 . . Parts Scanalyzed . | . . . . Part Schematics Acquired . | . . . . Parts Damaged . | . . . . Bothacking | -11 -10 -10 -9 ------------ Run | Yrd Mat Min Mat Used RIF Installer . | . . . . Robots Hacked . | . . . . Non-combat . | . . . . Combat . | . . . . Robot Hacks Applied . | . . . . Relay Couplers Released . | . . . . Fabnet Peak Effective % . | . . . . Robots Rewired . | . . . . Allies Hacked . | . . . . Hacks Repelled . | . . . . Allies | -11 -10 -10 -9 -------- Run | Yrd Mat Min Mat Total Allies . | . . . . Largest Group . | . . . . Highest-Rated Group . | . . . . Highest-Rated Ally . | . . . . Total Orders . | . . . . Ally Attacks . | . . . . Total Damage . | . . . . Kills . | . . . . Allies Corrupted . | . . . . Allies Melted . | . . . . Intel | -11 -10 -10 -9 ------- Run | Yrd Mat Min Mat Robot Analysis Total . | . . . . Derelict Logs Recovered 2 | . . 2 . Drone Launches . | . . . . Drone Recoveries . | . . . . Exploration | -11 -10 -10 -9 ------------- Run | Yrd Mat Min Mat Turns Passed 2612 | 8 1763 592 249 Spaces Moved 1419 | 4 1011 336 68 Core 2 | . . . 2 Treads 1382 | 4 1011 336 31 Legs . | . . . . Wheels 35 | . . . 35 Hover . | . . . . Flight . | . . . . Fastest Speed 95 | 160 160 160 95 Average Speed 159 | 160 160 160 157 Slowest Speed 600 | 160 160 160 600 Overloaded Moves . | . . . . Propulsion Burnouts . | . . . . Robots Hopped . | . . . . Cave-ins Triggered . | . . . . Exploration Rate (%) 41 | 2 90 63 10 Regions Visited 3 Branch Regions 1 Pre-discovered Areas 1 | . . 1 . Known Exits Taken . | . . . . Unknown Exits Taken 3 | 1 1 1 . Scrap Searched . | . . . . Spaces Dug 5 | . . 5 . Terrain Destroyed 58 | . 40 12 6 Melee 5 | . . 5 . Projectile . | . . . . AOE 53 | . 40 7 6 Terrain Rammed . | . . . . Walls Destroyed . | . . . . Machines Disabled . | . . . . Actions | -11 -10 -10 -9 --------- Run | Yrd Mat Min Mat Total 1626 | 5 1110 364 147 Wait 28 | . 28 . . Move 1416 | 3 1010 335 68 Hop . | . . . . Pick Up 13 | . 11 1 1 Fast Attach 5 | . 2 . 3 Attach 5 | . . . 5 Detach . | . . . . Swap 14 | 2 6 3 3 Drop 7 | . 6 . 1 Fire 104 | . 45 19 40 Melee 29 | . . 6 23 Ram 2 | . . . 2 Kick . | . . . . Crush 3 | . 2 . 1 Escape Stasis . | . . . . Rewire . | . . . . Trap . | . . . . Miscellaneous . | . . . . Route ------- -11/Scrapyard -10/Materials (discovered 4 exits: *Mat x3 / [*Min]) -10/Mines (discovered 2 exits: *Mat / Exi) -9/Materials History --------- Turn | Location | Event 4 | -11/Scrapyard | Discovered new exit (range 1) 9 | -11/Scrapyard | Entered Materials 49 | -10/Materials | Discovered new exit (range 16) 226 | -10/Materials | Discovered new exit (range 16) 319 | -10/Materials | Build established: Mutant 675 | -10/Materials | Discovered new exit (range 11) 1128 | -10/Materials | Repaired Terrain Scanner 1259 | -10/Materials | Discovered new exit (range 3) 1772 | -10/Materials | Entered Mines 1986 | -10/Mines | A weapon hastily lodged in a ceiling crevice suddenly fell to the ground 2340 | -10/Mines | Discovered new exit (range 9) 2343 | -10/Mines | Learned Materials trap positions 2350 | -10/Mines | Identified exit to Exiles 2351 | -10/Mines | Learned location of Storage (-9) 2364 | -10/Mines | Entered Materials 2364 | -9/Materials | Evolved 2 slots: Power x1, Utility x1 2365 | -9/Materials | Loaded intel: 13 trap records 2488 | -9/Materials | Lost 3 parts (2n1w) 2594 | -9/Materials | Core integrity fell below 50% 2605 | -9/Materials | Core integrity fell below 20% 2613 | -9/Materials | Destroyed by G-34 Mercenary with Small Laser Last Messages --------------- U-05 Engineer works on Electrolysis Chamber. Acquired 9 matter. K-01 Serf collects debris. M-13 Machinist repairs G-34 Mercenary. Ion Engine destroyed. U-05 Engineer works on Electrolysis Chamber. K-01 Serf collects debris. U-05 Engineer works on Electrolysis Chamber. M-13 Machinist repairs G-34 Mercenary. Structural Scanner destroyed. K-01 Serf collects debris. Acquired 10 matter. U-05 Engineer completes Electrolysis Chamber. Y-45 Defender destroyed. K-01 Serf collects debris. Sneak attack on K-01 Serf. K-01 Serf destroyed. R-06 Scavenger collects Wheel. W-16 Scout distress signal alerts nearby ally. K-01 Serf collects debris. Map ----- +----------------------------------------------------+ | ?????????????????????????????????????????????????? | | ?????????????????????????????????????????????????? | | ?????????????????????????????????????????????????? | | ?????????????????????????????????????????????????? | | ????????????????? ?????????????????????????????? | | ????????????????? ?????????????????????????????? | | ????????????????? ?????????????????????????????? | | ????????????????? ?????????????????????????????? | | ?????????? ?????? ?????????????????????????????? | | ??????????????? ? ???? ?? ?????????????????????? | | ????????????????? ???#?????????????????????????? | | ????#??????????## ?????? ?? ? ?? ##????????????? | | ?????????????#??# ?? ? ??##??#??+##????????????? | | ?????#??????#???# ?????######### ####??????????? | | ??????????#????## #????######### ######????????? | | ???????????#?##?## ##????## ^ [] ####????????? | | ????????####????## ##? ? ## ]] ????????? | | ??????#?########## ##??? ## ##??????????? | | ?????#??##**!!!!## ##? ??## ###??????????? | | ????????##* ! !## ## ##^ gg ###??????????? | | ??????#### ##w######## T##??????????? | | #?????#### ## #### ^ ###??????????? | | ??????## % k <